[Event "Titled Tuesday Blitz February 07 Early 2023"]
[White "Sailer, Mike"]
[Black "Taboas Rodriguez, Daniel"]
[WhiteFideId "2012901"]
[BlackFideId "2208466"]
[WhiteElo "2109"]
[BlackElo "2371"]
[Result "0-1"]
[Round "01"]
[TimeControl "180+2"]
[Date "2023.02.07"]
[WhiteClock "0:00:02"]
[BlackClock "0:00:51"]

1. g3 {[%clk 0:02:59]}  Nf6 {[%clk 0:02:58]} 2. Bg2 {[%clk 0:03:00]}  g6 {[%clk 0:02:59]} 3. c4 {[%clk 0:03:01]}  Bg7 {[%clk 0:02:59]} 4. Nc3 {[%clk 0:03:01]}  O-O {[%clk 0:02:59]} 5. d3 {[%clk 0:03:02]}  c5 {[%clk 0:02:59]} 6. Bg5 {[%clk 0:03:01]}  Nc6 {[%clk 0:02:59]} 7. Qd2 {[%clk 0:03:01]}  d6 {[%clk 0:02:55]} 8. a3 {[%clk 0:03:01]}  Nd4 {[%clk 0:02:54]} 9. Rb1 {[%clk 0:02:47]}  Rb8 {[%clk 0:02:45]} 10. Nf3 {[%clk 0:02:43]}  Nxf3+ {[%clk 0:02:44]} 11. Bxf3 {[%clk 0:02:44]}  Bh3 {[%clk 0:02:45]} 12. Bh6 {[%clk 0:02:40]}  Qd7 {[%clk 0:02:43]} 13. Bxg7 {[%clk 0:02:40]}  Kxg7 {[%clk 0:02:44]} 14. b4 {[%clk 0:02:29]}  b6 {[%clk 0:02:43]} 15. b5 {[%clk 0:02:22]}  h5 {[%clk 0:02:40]} 16. Bc6 {[%clk 0:02:22]}  Qf5 {[%clk 0:02:33]} 17. Qf4 {[%clk 0:02:15]}  Qc8 {[%clk 0:02:27]} 18. f3 {[%clk 0:01:59]}  e5 {[%clk 0:02:14]} 19. Qd2 {[%clk 0:01:47]}  Qf5 {[%clk 0:02:09]} 20. Ne4 {[%clk 0:01:36]}  Nxe4 {[%clk 0:02:06]} 21. dxe4 {[%clk 0:01:27]}  Qe6 {[%clk 0:02:03]} 22. Bd5 {[%clk 0:01:26]}  Qe7 {[%clk 0:02:01]} 23. Kf2 {[%clk 0:01:21]}  f5 {[%clk 0:02:00]} 24. exf5 {[%clk 0:01:21]}  Rxf5 {[%clk 0:01:58]} 25. Be4 {[%clk 0:01:16]}  Rf6 {[%clk 0:01:57]} 26. Rhe1 {[%clk 0:01:15]}  Rbf8 {[%clk 0:01:57]} 27. Kg1 {[%clk 0:01:15]}  Be6 {[%clk 0:01:54]} 28. Bd5 {[%clk 0:01:14]}  h4 {[%clk 0:01:52]} 29. Bxe6 {[%clk 0:01:13]}  Qxe6 {[%clk 0:01:51]} 30. Qd5 {[%clk 0:01:06]}  hxg3 {[%clk 0:01:45]} 31. hxg3 {[%clk 0:01:05]}  Qh3 {[%clk 0:01:45]} 32. Kf2 {[%clk 0:00:47]}  Qh2+ {[%clk 0:01:44]} 33. Ke3 {[%clk 0:00:47]}  Qxg3 {[%clk 0:01:45]} 34. Kd3 {[%clk 0:00:39]}  Rf4 {[%clk 0:01:11]} 35. Kc3 {[%clk 0:00:28]}  Rd4 {[%clk 0:01:08]} 36. Qb7+ {[%clk 0:00:19]}  Rf7 {[%clk 0:01:08]} 37. Qc8 {[%clk 0:00:17]}  Qf4 {[%clk 0:00:53]} 38. Qe6 {[%clk 0:00:16]}  Qe3+ {[%clk 0:00:50]} 39. Kc2 {[%clk 0:00:03]}  Rd2+ {[%clk 0:00:51]} 40. Kc1 {[%clk 0:00:02]}  Qc3# {[%clk 0:00:51]} 0-1


[Site "https://www.chess.com"]

[Event "Titled Tuesday Blitz February 07 Early 2023"]
[White "Sturt, Raven"]
[Black "Simonovic, Miroslav"]
[WhiteFideId "2007304"]
[BlackFideId "919152"]
[WhiteElo "2470"]
[BlackElo "2082"]
[Result "0-1"]
[Round "01"]
[TimeControl "180+2"]
[Date "2023.02.07"]
[WhiteClock "0:01:08"]
[BlackClock "0:00:49"]

1. e4 {[%clk 0:02:57]}  c5 {[%clk 0:03:00]} 2. d4 {[%clk 0:02:54]}  cxd4 {[%clk 0:03:00]} 3. c3 {[%clk 0:02:55]}  dxc3 {[%clk 0:03:00]} 4. Nxc3 {[%clk 0:02:55]}  Nc6 {[%clk 0:03:01]} 5. Nf3 {[%clk 0:02:55]}  d6 {[%clk 0:03:02]} 6. Bc4 {[%clk 0:02:55]}  e6 {[%clk 0:03:02]} 7. O-O {[%clk 0:02:55]}  Be7 {[%clk 0:03:02]} 8. Qe2 {[%clk 0:02:54]}  Nf6 {[%clk 0:03:02]} 9. Rd1 {[%clk 0:02:54]}  Qa5 {[%clk 0:03:03]} 10. Bf4 {[%clk 0:02:46]}  O-O {[%clk 0:03:00]} 11. Bxd6 {[%clk 0:02:45]}  Bxd6 {[%clk 0:03:01]} 12. Rxd6 {[%clk 0:02:46]}  Ne5 {[%clk 0:03:01]} 13. Bb3 {[%clk 0:02:34]}  Bd7 {[%clk 0:02:37]} 14. Rad1 {[%clk 0:02:25]}  Bc6 {[%clk 0:02:33]} 15. Nd4 {[%clk 0:02:24]}  Rad8 {[%clk 0:02:20]} 16. Nxc6 {[%clk 0:02:06]}  Nxc6 {[%clk 0:02:13]} 17. Qe3 {[%clk 0:02:00]}  Rxd6 {[%clk 0:01:59]} 18. Rxd6 {[%clk 0:02:01]}  Qe5 {[%clk 0:01:53]} 19. Rd2 {[%clk 0:01:57]}  Ng4 {[%clk 0:01:33]} 20. Qh3 {[%clk 0:01:55]}  Qg5 {[%clk 0:01:19]} 21. Rd1 {[%clk 0:01:49]}  Rd8 {[%clk 0:01:15]} 22. Qf3 {[%clk 0:01:44]}  Rxd1+ {[%clk 0:01:07]} 23. Qxd1 {[%clk 0:01:40]}  Qf4 {[%clk 0:01:04]} 24. Qf3 {[%clk 0:01:09]}  Qxh2+ {[%clk 0:00:53]} 25. Kf1 {[%clk 0:01:08]}  Qh1+ {[%clk 0:00:49]} 0-1


[Site "https://www.chess.com"]

[Event "Titled Tuesday Blitz February 07 Early 2023"]
[White "ritanovikova"]
[Black "Sukandar, Irine Kharisma"]
[BlackFideId "7101937"]
[WhiteElo "2202"]
[BlackElo "2390"]
[Result "0-1"]
[Round "01"]
[TimeControl "180+2"]
[Date "2023.02.07"]
[WhiteClock "0:00:12"]
[BlackClock "0:00:20"]

1. e4 {[%clk 0:02:58]}  c5 {[%clk 0:02:59]} 2. Nc3 {[%clk 0:02:56]}  e5 {[%clk 0:02:55]} 3. Nf3 {[%clk 0:02:46]}  d6 {[%clk 0:02:53]} 4. h3 {[%clk 0:02:46]}  g6 {[%clk 0:02:48]} 5. Bc4 {[%clk 0:02:46]}  Bg7 {[%clk 0:02:47]} 6. a3 {[%clk 0:02:46]}  Nc6 {[%clk 0:02:44]} 7. O-O {[%clk 0:02:45]}  h6 {[%clk 0:02:22]} 8. d3 {[%clk 0:02:45]}  Nge7 {[%clk 0:02:22]} 9. Rb1 {[%clk 0:02:39]}  a6 {[%clk 0:02:18]} 10. b4 {[%clk 0:02:37]}  b5 {[%clk 0:02:15]} 11. Ba2 {[%clk 0:02:36]}  O-O {[%clk 0:02:11]} 12. Be3 {[%clk 0:02:35]}  Nd4 {[%clk 0:02:08]} 13. Nd5 {[%clk 0:02:31]}  Be6 {[%clk 0:02:05]} 14. Nxe7+ {[%clk 0:02:14]}  Qxe7 {[%clk 0:02:05]} 15. Bxe6 {[%clk 0:02:11]}  Qxe6 {[%clk 0:02:01]} 16. c3 {[%clk 0:02:08]}  Nxf3+ {[%clk 0:02:00]} 17. Qxf3 {[%clk 0:02:09]}  Rac8 {[%clk 0:01:54]} 18. Rbc1 {[%clk 0:02:04]}  Qb3 {[%clk 0:01:52]} 19. Bd2 {[%clk 0:01:43]}  Qxa3 {[%clk 0:01:49]} 20. bxc5 {[%clk 0:01:16]}  Qxc5 {[%clk 0:01:48]} 21. Be3 {[%clk 0:01:14]}  Qc6 {[%clk 0:01:46]} 22. d4 {[%clk 0:01:12]}  Qc4 {[%clk 0:01:32]} 23. dxe5 {[%clk 0:00:58]}  dxe5 {[%clk 0:01:30]} 24. Bb6 {[%clk 0:00:48]}  Rc6 {[%clk 0:01:20]} 25. Ba5 {[%clk 0:00:47]}  Qe6 {[%clk 0:01:09]} 26. Bb4 {[%clk 0:00:45]}  Rd8 {[%clk 0:01:08]} 27. Rfd1 {[%clk 0:00:45]}  Rcc8 {[%clk 0:01:08]} 28. Ba5 {[%clk 0:00:44]}  Rxd1+ {[%clk 0:01:06]} 29. Rxd1 {[%clk 0:00:44]}  Qa2 {[%clk 0:01:03]} 30. Rd8+ {[%clk 0:00:39]}  Rxd8 {[%clk 0:01:02]} 31. Bxd8 {[%clk 0:00:40]}  Qd2 {[%clk 0:00:53]} 32. Ba5 {[%clk 0:00:36]}  Bf8 {[%clk 0:00:48]} 33. Bb6 {[%clk 0:00:34]}  Qd6 {[%clk 0:00:35]} 34. Qe3 {[%clk 0:00:32]}  Qc6 {[%clk 0:00:33]} 35. g3 {[%clk 0:00:27]}  b4 {[%clk 0:00:32]} 36. cxb4 {[%clk 0:00:24]}  Bxb4 {[%clk 0:00:32]} 37. Kg2 {[%clk 0:00:20]}  a5 {[%clk 0:00:32]} 38. Bd8 {[%clk 0:00:19]}  Bc5 {[%clk 0:00:30]} 39. Qd3 {[%clk 0:00:17]}  a4 {[%clk 0:00:29]} 40. Ba5 {[%clk 0:00:16]}  Bf8 {[%clk 0:00:25]} 41. Bc3 {[%clk 0:00:16]}  Qd6 {[%clk 0:00:21]} 42. Ba1 {[%clk 0:00:12]}  Qxd3 {[%clk 0:00:20]} 0-1


[Site "https://www.chess.com"]

[Event "Titled Tuesday Blitz February 07 Early 2023"]
[White "Perez Gormaz, Matias"]
[Black "Magallanes, Rey Jomar"]
[WhiteFideId "3406342"]
[BlackFideId "5205948"]
[WhiteElo "2406"]
[BlackElo "2052"]
[Result "1-0"]
[Round "01"]
[TimeControl "180+2"]
[Date "2023.02.07"]
[WhiteClock "0:01:05"]
[BlackClock "0:00:02"]

1. Nf3 {[%clk 0:03:00]}  Nf6 {[%clk 0:02:59]} 2. g3 {[%clk 0:03:00]}  g6 {[%clk 0:02:59]} 3. Bg2 {[%clk 0:03:00]}  Bg7 {[%clk 0:03:00]} 4. b3 {[%clk 0:03:00]}  O-O {[%clk 0:03:01]} 5. Bb2 {[%clk 0:03:01]}  d6 {[%clk 0:03:02]} 6. d4 {[%clk 0:03:01]}  a5 {[%clk 0:02:52]} 7. a4 {[%clk 0:03:01]}  Nbd7 {[%clk 0:02:52]} 8. O-O {[%clk 0:03:01]}  Re8 {[%clk 0:02:51]} 9. Na3 {[%clk 0:03:00]}  c6 {[%clk 0:02:29]} 10. Re1 {[%clk 0:02:59]}  Qc7 {[%clk 0:02:26]} 11. Nc4 {[%clk 0:02:57]}  d5 {[%clk 0:02:22]} 12. Ncd2 {[%clk 0:02:54]}  e5 {[%clk 0:02:12]} 13. Nxe5 {[%clk 0:02:48]}  Nxe5 {[%clk 0:02:06]} 14. dxe5 {[%clk 0:02:48]}  Ng4 {[%clk 0:02:06]} 15. c4 {[%clk 0:02:41]}  dxc4 {[%clk 0:01:31]} 16. Nxc4 {[%clk 0:02:40]}  Nxe5 {[%clk 0:01:26]} 17. Rc1 {[%clk 0:01:43]}  Nxc4 {[%clk 0:01:06]} 18. Bxg7 {[%clk 0:01:44]}  Kxg7 {[%clk 0:00:49]} 19. Rxc4 {[%clk 0:01:43]}  Be6 {[%clk 0:00:45]} 20. Qa1+ {[%clk 0:01:43]}  Kg8 {[%clk 0:00:45]} 21. Rc3 {[%clk 0:01:42]}  Red8 {[%clk 0:00:41]} 22. Bf3 {[%clk 0:01:36]}  Qe5 {[%clk 0:00:39]} 23. Qc1 {[%clk 0:01:23]}  Rd4 {[%clk 0:00:34]} 24. Rc5 {[%clk 0:01:21]}  Qd6 {[%clk 0:00:32]} 25. Qc3 {[%clk 0:01:20]}  Rb4 {[%clk 0:00:25]} 26. Rb1 {[%clk 0:01:20]}  Bxb3 {[%clk 0:00:07]} 27. h4 {[%clk 0:01:04]}  Bxa4 {[%clk 0:00:07]} 28. Ra1 {[%clk 0:01:04]}  Bb5 {[%clk 0:00:02]} 29. h5 {[%clk 0:01:05]} 1-0


[Site "https://www.chess.com"]

[Event "Titled Tuesday Blitz February 07 Early 2023"]
[White "Tobares, Leandro"]
[Black "Tarlabasi, Emirhan"]
[WhiteFideId "106402"]
[BlackFideId "6350275"]
[WhiteElo "2189"]
[BlackElo "2300"]
[Result "0-1"]
[Round "01"]
[TimeControl "180+2"]
[Date "2023.02.07"]
[WhiteClock "0:00:02"]
[BlackClock "0:00:15"]

1. e4 {[%clk 0:02:33]}  e6 {[%clk 0:03:00]} 2. d3 {[%clk 0:02:32]}  d5 {[%clk 0:02:58]} 3. Nd2 {[%clk 0:02:33]}  Nf6 {[%clk 0:02:56]} 4. Ngf3 {[%clk 0:02:27]}  Be7 {[%clk 0:02:56]} 5. Be2 {[%clk 0:02:27]}  c5 {[%clk 0:02:56]} 6. O-O {[%clk 0:02:26]}  b6 {[%clk 0:02:57]} 7. exd5 {[%clk 0:02:25]}  exd5 {[%clk 0:02:56]} 8. c4 {[%clk 0:02:21]}  Bb7 {[%clk 0:02:54]} 9. Qa4+ {[%clk 0:02:15]}  Bc6 {[%clk 0:02:50]} 10. Qc2 {[%clk 0:02:13]}  Nbd7 {[%clk 0:02:48]} 11. d4 {[%clk 0:02:11]}  O-O {[%clk 0:02:45]} 12. cxd5 {[%clk 0:02:09]}  Nxd5 {[%clk 0:02:34]} 13. Nc4 {[%clk 0:02:00]}  Bf6 {[%clk 0:02:18]} 14. Rd1 {[%clk 0:01:48]}  Qc7 {[%clk 0:01:51]} 15. dxc5 {[%clk 0:01:40]}  Nxc5 {[%clk 0:01:49]} 16. Nd4 {[%clk 0:01:35]}  Nb4 {[%clk 0:01:23]} 17. Qf5 {[%clk 0:01:28]}  Be4 {[%clk 0:01:18]} 18. Qf4 {[%clk 0:01:15]}  Qxf4 {[%clk 0:01:15]} 19. Bxf4 {[%clk 0:01:12]}  Bxd4 {[%clk 0:01:16]} 20. Rxd4 {[%clk 0:01:08]}  Nc2 {[%clk 0:01:16]} 21. Rxe4 {[%clk 0:01:06]}  Nxe4 {[%clk 0:01:17]} 22. Rd1 {[%clk 0:01:01]}  Rfd8 {[%clk 0:01:15]} 23. Bd3 {[%clk 0:01:01]}  Nb4 {[%clk 0:01:16]} 24. Be2 {[%clk 0:00:52]}  Rxd1+ {[%clk 0:01:14]} 25. Bxd1 {[%clk 0:00:52]}  Rd8 {[%clk 0:01:11]} 26. Bf3 {[%clk 0:00:50]}  Nc5 {[%clk 0:00:50]} 27. a3 {[%clk 0:00:45]}  Nbd3 {[%clk 0:00:50]} 28. Bc7 {[%clk 0:00:44]}  Re8 {[%clk 0:00:46]} 29. h4 {[%clk 0:00:41]}  Re1+ {[%clk 0:00:46]} 30. Kh2 {[%clk 0:00:40]}  Nxf2 {[%clk 0:00:38]} 31. Nd6 {[%clk 0:00:37]}  g6 {[%clk 0:00:31]} 32. Bd5 {[%clk 0:00:35]}  Ne6 {[%clk 0:00:27]} 33. Bb8 {[%clk 0:00:33]}  h5 {[%clk 0:00:24]} 34. Bxa7 {[%clk 0:00:31]}  Rd1 {[%clk 0:00:24]} 35. Bxe6 {[%clk 0:00:30]}  Rxd6 {[%clk 0:00:20]} 36. Bc4 {[%clk 0:00:25]}  Ng4+ {[%clk 0:00:19]} 37. Kg3 {[%clk 0:00:24]}  Ne3 {[%clk 0:00:19]} 38. Bb5 {[%clk 0:00:19]}  Nf5+ {[%clk 0:00:19]} 39. Kf4 {[%clk 0:00:18]}  Rd4+ {[%clk 0:00:19]} 40. Kg5 {[%clk 0:00:17]}  Rd2 {[%clk 0:00:20]} 41. g4 {[%clk 0:00:15]}  Rg2 {[%clk 0:00:20]} 42. Bxb6 {[%clk 0:00:14]}  Kg7 {[%clk 0:00:18]} 43. Kf4 {[%clk 0:00:07]}  hxg4 {[%clk 0:00:15]} 44. Bd3 {[%clk 0:00:06]}  Rxb2 {[%clk 0:00:14]} 45. Bxf5 {[%clk 0:00:04]}  Rxb6 {[%clk 0:00:14]} 46. Bxg4 {[%clk 0:00:04]}  Ra6 {[%clk 0:00:14]} 47. h5 {[%clk 0:00:03]}  Ra4+ {[%clk 0:00:15]} 48. Kg3 {[%clk 0:00:02]}  g5 {[%clk 0:00:15]} 0-1


[Site "https://www.chess.com"]

[Event "Titled Tuesday Blitz February 07 Early 2023"]
[White "Hirneise, Jens"]
[Black "Ricaurte Lopez, Juan Carlos"]
[WhiteFideId "24614734"]
[BlackFideId "3600327"]
[WhiteElo "2277"]
[BlackElo "2226"]
[Result "1-0"]
[Round "01"]
[TimeControl "180+2"]
[Date "2023.02.07"]
[WhiteClock "0:02:05"]
[BlackClock "0:00:01"]

1. Nf3 {[%clk 0:02:54]}  d5 {[%clk 0:02:57]} 2. g3 {[%clk 0:02:55]}  c5 {[%clk 0:02:54]} 3. c4 {[%clk 0:02:53]}  d4 {[%clk 0:02:51]} 4. b4 {[%clk 0:02:53]}  cxb4 {[%clk 0:02:49]} 5. a3 {[%clk 0:02:53]}  bxa3 {[%clk 0:02:48]} 6. Bg2 {[%clk 0:02:53]}  Nc6 {[%clk 0:02:47]} 7. O-O {[%clk 0:02:53]}  g6 {[%clk 0:02:44]} 8. Bxa3 {[%clk 0:02:50]}  Bg7 {[%clk 0:02:44]} 9. d3 {[%clk 0:02:50]}  Nh6 {[%clk 0:02:43]} 10. Nbd2 {[%clk 0:02:49]}  O-O {[%clk 0:02:37]} 11. Nb3 {[%clk 0:02:49]}  Re8 {[%clk 0:02:33]} 12. Ne1 {[%clk 0:02:45]}  Nf5 {[%clk 0:02:21]} 13. Nc2 {[%clk 0:02:42]}  e5 {[%clk 0:02:16]} 14. Nb4 {[%clk 0:02:41]}  Nxb4 {[%clk 0:02:10]} 15. Bxb4 {[%clk 0:02:42]}  Bf8 {[%clk 0:01:39]} 16. Bxf8 {[%clk 0:02:36]}  Kxf8 {[%clk 0:01:36]} 17. Qd2 {[%clk 0:02:33]}  Kg7 {[%clk 0:01:35]} 18. Qb4 {[%clk 0:02:30]}  Qc7 {[%clk 0:01:30]} 19. Qc5 {[%clk 0:02:27]}  Qxc5 {[%clk 0:01:14]} 20. Nxc5 {[%clk 0:02:28]}  Nd6 {[%clk 0:01:13]} 21. Rfb1 {[%clk 0:02:26]}  f5 {[%clk 0:01:03]} 22. Nxb7 {[%clk 0:02:23]}  Nxb7 {[%clk 0:01:01]} 23. Bxb7 {[%clk 0:02:24]}  Bxb7 {[%clk 0:00:58]} 24. Rxb7+ {[%clk 0:02:25]}  Kh6 {[%clk 0:00:40]} 25. Raxa7 {[%clk 0:02:23]}  Rxa7 {[%clk 0:00:41]} 26. Rxa7 {[%clk 0:02:24]}  e4 {[%clk 0:00:40]} 27. Rd7 {[%clk 0:02:22]}  f4 {[%clk 0:00:16]} 28. gxf4 {[%clk 0:02:18]}  exd3 {[%clk 0:00:13]} 29. exd3 {[%clk 0:02:17]}  Kh5 {[%clk 0:00:10]} 30. Rxd4 {[%clk 0:02:13]}  Kg4 {[%clk 0:00:09]} 31. Kg2 {[%clk 0:02:14]}  Re1 {[%clk 0:00:05]} 32. h3+ {[%clk 0:02:14]}  Kf5 {[%clk 0:00:04]} 33. Kf3 {[%clk 0:02:09]}  Rh1 {[%clk 0:00:04]} 34. Rd5+ {[%clk 0:02:09]}  Ke6 {[%clk 0:00:04]} 35. Kg2 {[%clk 0:02:07]}  Rd1 {[%clk 0:00:02]} 36. Rd8 {[%clk 0:02:07]}  Ke7 {[%clk 0:00:01]} 37. Rd4 {[%clk 0:02:05]} 1-0


[Site "https://www.chess.com"]

[Event "Titled Tuesday Blitz February 07 Early 2023"]
[White "Kuchava, Ana"]
[Black "Ladan, Nicholas"]
[WhiteFideId "13605348"]
[BlackFideId "30918855"]
[WhiteElo "2101"]
[BlackElo "2228"]
[Result "0-1"]
[Round "01"]
[TimeControl "180+2"]
[Date "2023.02.07"]
[WhiteClock "0:00:44"]
[BlackClock "0:01:02"]

1. d4 {[%clk 0:03:00]}  d5 {[%clk 0:02:57]} 2. Nf3 {[%clk 0:02:58]}  Nf6 {[%clk 0:02:57]} 3. c4 {[%clk 0:02:49]}  c6 {[%clk 0:02:55]} 4. Qb3 {[%clk 0:02:45]}  g6 {[%clk 0:02:45]} 5. Bg5 {[%clk 0:02:43]}  Bg7 {[%clk 0:02:44]} 6. cxd5 {[%clk 0:02:39]}  Nxd5 {[%clk 0:02:36]} 7. Nc3 {[%clk 0:02:33]}  O-O {[%clk 0:02:31]} 8. e4 {[%clk 0:02:25]}  Nxc3 {[%clk 0:02:15]} 9. bxc3 {[%clk 0:02:25]}  Qa5 {[%clk 0:02:14]} 10. Bc4 {[%clk 0:02:13]}  b5 {[%clk 0:01:52]} 11. Bd3 {[%clk 0:02:11]}  c5 {[%clk 0:01:39]} 12. O-O {[%clk 0:02:10]}  c4 {[%clk 0:01:39]} 13. Bxc4 {[%clk 0:02:08]}  bxc4 {[%clk 0:01:40]} 14. Qc2 {[%clk 0:01:37]}  Bg4 {[%clk 0:01:36]} 15. Bxe7 {[%clk 0:01:30]}  Bxf3 {[%clk 0:01:35]} 16. Bxf8 {[%clk 0:01:26]}  Qg5 {[%clk 0:01:35]} 17. g3 {[%clk 0:01:22]}  Bxf8 {[%clk 0:01:34]} 18. h4 {[%clk 0:01:19]}  Qg4 {[%clk 0:01:33]} 19. Kh2 {[%clk 0:01:19]}  Bxe4 {[%clk 0:01:32]} 20. Qd2 {[%clk 0:01:14]}  Bd6 {[%clk 0:01:22]} 21. f4 {[%clk 0:01:07]}  Nd7 {[%clk 0:01:15]} 22. Rae1 {[%clk 0:01:00]}  Nf6 {[%clk 0:01:14]} 23. d5 {[%clk 0:00:53]}  Bc5 {[%clk 0:01:03]} 24. Qe2 {[%clk 0:00:43]}  Qxe2+ {[%clk 0:01:02]} 25. Rxe2 {[%clk 0:00:44]}  Bd3 {[%clk 0:01:02]} 0-1


[Site "https://www.chess.com"]

[Event "Titled Tuesday Blitz February 07 Early 2023"]
[White "Kiseleva, Arina"]
[Black "Brodowski, Piotr"]
[WhiteFideId "4164989"]
[BlackFideId "1124480"]
[WhiteElo "1962"]
[BlackElo "2457"]
[Result "0-1"]
[Round "01"]
[TimeControl "180+2"]
[Date "2023.02.07"]
[WhiteClock "0:00:08"]
[BlackClock "0:01:55"]

1. d4 {[%clk 0:02:57]}  c5 {[%clk 0:02:57]} 2. e3 {[%clk 0:02:56]}  Nf6 {[%clk 0:02:56]} 3. Nf3 {[%clk 0:02:57]}  g6 {[%clk 0:02:55]} 4. Be2 {[%clk 0:02:57]}  Bg7 {[%clk 0:02:56]} 5. O-O {[%clk 0:02:58]}  O-O {[%clk 0:02:56]} 6. b3 {[%clk 0:02:58]}  d5 {[%clk 0:02:56]} 7. Bb2 {[%clk 0:02:58]}  Nc6 {[%clk 0:02:57]} 8. Ne5 {[%clk 0:02:56]}  cxd4 {[%clk 0:02:56]} 9. exd4 {[%clk 0:02:55]}  Qc7 {[%clk 0:02:56]} 10. Nxc6 {[%clk 0:02:49]}  Qxc6 {[%clk 0:02:55]} 11. Nd2 {[%clk 0:02:50]}  Bf5 {[%clk 0:02:54]} 12. c4 {[%clk 0:02:46]}  dxc4 {[%clk 0:02:53]} 13. Nxc4 {[%clk 0:02:43]}  Rfd8 {[%clk 0:02:53]} 14. Ne5 {[%clk 0:02:41]}  Qd6 {[%clk 0:02:50]} 15. Bc4 {[%clk 0:02:38]}  Nd5 {[%clk 0:02:49]} 16. Qf3 {[%clk 0:02:34]}  a6 {[%clk 0:02:47]} 17. a4 {[%clk 0:02:27]}  Rac8 {[%clk 0:02:44]} 18. Ba3 {[%clk 0:02:17]}  Qe6 {[%clk 0:02:40]} 19. Rfe1 {[%clk 0:01:55]}  b5 {[%clk 0:02:40]} 20. axb5 {[%clk 0:01:53]}  axb5 {[%clk 0:02:39]} 21. Nxg6 {[%clk 0:01:41]}  Qxg6 {[%clk 0:02:37]} 22. Bxd5 {[%clk 0:01:42]}  Bxd4 {[%clk 0:02:36]} 23. Bxe7 {[%clk 0:01:36]}  Rc3 {[%clk 0:02:11]} 24. Qf4 {[%clk 0:01:24]}  Rxd5 {[%clk 0:02:11]} 25. Ra8+ {[%clk 0:01:19]}  Rc8 {[%clk 0:02:10]} 26. Rxc8+ {[%clk 0:01:15]}  Bxc8 {[%clk 0:02:10]} 27. Qc7 {[%clk 0:00:34]}  Qf5 {[%clk 0:02:01]} 28. Bh4 {[%clk 0:00:26]}  Be6 {[%clk 0:01:56]} 29. Qb8+ {[%clk 0:00:19]}  Kg7 {[%clk 0:01:56]} 30. Qg3+ {[%clk 0:00:15]}  Qg4 {[%clk 0:01:55]} 31. Qxg4+ {[%clk 0:00:15]}  Bxg4 {[%clk 0:01:54]} 32. Kf1 {[%clk 0:00:12]}  Be6 {[%clk 0:01:54]} 33. Rd1 {[%clk 0:00:11]}  Bc3 {[%clk 0:01:53]} 34. Ke2 {[%clk 0:00:10]}  Rxd1 {[%clk 0:01:53]} 35. Kxd1 {[%clk 0:00:10]}  Bxb3+ {[%clk 0:01:53]} 36. Kc1 {[%clk 0:00:11]}  Bc4 {[%clk 0:01:54]} 37. Kc2 {[%clk 0:00:10]}  Bf6 {[%clk 0:01:54]} 38. Bg3 {[%clk 0:00:09]}  b4 {[%clk 0:01:54]} 39. f4 {[%clk 0:00:09]}  b3+ {[%clk 0:01:55]} 40. Kb1 {[%clk 0:00:08]}  Bd3+ {[%clk 0:01:54]} 41. Kc1 {[%clk 0:00:08]}  b2+ {[%clk 0:01:55]} 0-1


[Site "https://www.chess.com"]

[Event "Titled Tuesday Blitz February 07 Early 2023"]
[White "Reprintsev, Alexander"]
[Black "Larina, Maria"]
[WhiteFideId "14100541"]
[BlackFideId "24113182"]
[WhiteElo "2253"]
[BlackElo "1948"]
[Result "1-0"]
[Round "01"]
[TimeControl "180+2"]
[Date "2023.02.07"]
[WhiteClock "0:01:07"]
[BlackClock "0:00:13"]

1. e4 {[%clk 0:02:51]}  c6 {[%clk 0:02:59]} 2. Nc3 {[%clk 0:02:50]}  d5 {[%clk 0:03:00]} 3. Nf3 {[%clk 0:02:50]}  Bg4 {[%clk 0:03:00]} 4. h3 {[%clk 0:02:50]}  Bxf3 {[%clk 0:03:01]} 5. Qxf3 {[%clk 0:02:50]}  e6 {[%clk 0:03:01]} 6. b3 {[%clk 0:02:50]}  d4 {[%clk 0:02:56]} 7. Ne2 {[%clk 0:02:47]}  c5 {[%clk 0:02:53]} 8. Nf4 {[%clk 0:02:42]}  Nc6 {[%clk 0:02:50]} 9. Bb5 {[%clk 0:02:41]}  Qb6 {[%clk 0:02:42]} 10. a4 {[%clk 0:02:39]}  a6 {[%clk 0:02:37]} 11. Bxc6+ {[%clk 0:02:28]}  Qxc6 {[%clk 0:02:38]} 12. a5 {[%clk 0:02:24]}  Nf6 {[%clk 0:02:31]} 13. d3 {[%clk 0:02:22]}  Be7 {[%clk 0:02:28]} 14. Nh5 {[%clk 0:02:15]}  Nxh5 {[%clk 0:02:25]} 15. Qxh5 {[%clk 0:02:15]}  O-O {[%clk 0:02:00]} 16. O-O {[%clk 0:02:15]}  Qc7 {[%clk 0:01:20]} 17. f4 {[%clk 0:02:11]}  f5 {[%clk 0:01:07]} 18. Bd2 {[%clk 0:02:03]}  b6 {[%clk 0:00:59]} 19. axb6 {[%clk 0:02:02]}  Qxb6 {[%clk 0:01:00]} 20. exf5 {[%clk 0:01:52]}  exf5 {[%clk 0:01:01]} 21. Rfe1 {[%clk 0:01:46]}  Qf6 {[%clk 0:00:51]} 22. Qe2 {[%clk 0:01:42]}  Rfe8 {[%clk 0:00:44]} 23. Qe6+ {[%clk 0:01:42]}  Kh8 {[%clk 0:00:31]} 24. Qxf6 {[%clk 0:01:41]}  Bxf6 {[%clk 0:00:30]} 25. Rxe8+ {[%clk 0:01:41]}  Rxe8 {[%clk 0:00:30]} 26. Rxa6 {[%clk 0:01:36]}  h6 {[%clk 0:00:21]} 27. Kf1 {[%clk 0:01:34]}  Rc8 {[%clk 0:00:18]} 28. Rd6 {[%clk 0:01:26]}  Kh7 {[%clk 0:00:18]} 29. Ba5 {[%clk 0:01:22]}  Kg6 {[%clk 0:00:17]} 30. g4 {[%clk 0:01:17]}  fxg4 {[%clk 0:00:16]} 31. hxg4 {[%clk 0:01:17]}  Kh7 {[%clk 0:00:15]} 32. Bb6 {[%clk 0:01:12]}  Be7 {[%clk 0:00:13]} 33. Re6 {[%clk 0:01:12]}  Bf8 {[%clk 0:00:13]} 34. Ke2 {[%clk 0:01:10]}  Kg8 {[%clk 0:00:12]} 35. Kf3 {[%clk 0:01:09]}  Kf7 {[%clk 0:00:13]} 36. f5 {[%clk 0:01:08]}  Rc6 {[%clk 0:00:13]} 37. Rxc6 {[%clk 0:01:07]} 1-0


[Site "https://www.chess.com"]